[Event "Titled Tuesday Blitz March 29 Early 2022"]
[White "Hebden, Mark L"]
[Black "Fromm, Marius"]
[WhiteFideId "400084"]
[BlackFideId "12993190"]
[WhiteElo "2457"]
[BlackElo "2482"]
[Result "1-0"]
[Round "06"]
[TimeControl "180+1"]
[Date "2022.03.30"]
[WhiteClock "0:00:27"]
[BlackClock "0:00:10"]

1. d4 {[%clk 0:03:00]}  Nf6 {[%clk 0:02:58]} 2. Nf3 {[%clk 0:03:00]}  e6 {[%clk 0:02:58]} 3. c3 {[%clk 0:02:59]}  d5 {[%clk 0:02:58]} 4. Bg5 {[%clk 0:02:59]}  Be7 {[%clk 0:02:57]} 5. Nbd2 {[%clk 0:02:58]}  O-O {[%clk 0:02:58]} 6. e3 {[%clk 0:02:58]}  Nbd7 {[%clk 0:02:58]} 7. Bd3 {[%clk 0:02:57]}  c5 {[%clk 0:02:59]} 8. Ne5 {[%clk 0:02:47]}  Nxe5 {[%clk 0:02:53]} 9. dxe5 {[%clk 0:02:46]}  Nd7 {[%clk 0:02:54]} 10. Bxe7 {[%clk 0:02:45]}  Qxe7 {[%clk 0:02:55]} 11. f4 {[%clk 0:02:44]}  f6 {[%clk 0:02:55]} 12. Qh5 {[%clk 0:02:42]}  g6 {[%clk 0:02:52]} 13. Qh4 {[%clk 0:02:41]}  Qg7 {[%clk 0:02:42]} 14. exf6 {[%clk 0:02:37]}  Qxf6 {[%clk 0:02:38]} 15. Qxf6 {[%clk 0:02:34]}  Nxf6 {[%clk 0:02:39]} 16. Nf3 {[%clk 0:02:32]}  b6 {[%clk 0:02:31]} 17. Ne5 {[%clk 0:02:31]}  Nd7 {[%clk 0:02:30]} 18. O-O {[%clk 0:02:15]}  Nxe5 {[%clk 0:02:29]} 19. fxe5 {[%clk 0:02:14]}  Bd7 {[%clk 0:02:29]} 20. b4 {[%clk 0:02:11]}  Rxf1+ {[%clk 0:02:25]} 21. Rxf1 {[%clk 0:02:08]}  Rc8 {[%clk 0:01:58]} 22. Kf2 {[%clk 0:01:45]}  cxb4 {[%clk 0:01:51]} 23. cxb4 {[%clk 0:01:45]}  Rc3 {[%clk 0:01:52]} 24. Rd1 {[%clk 0:01:44]}  Ra3 {[%clk 0:01:18]} 25. Rd2 {[%clk 0:01:43]}  Kf7 {[%clk 0:01:01]} 26. Ke2 {[%clk 0:01:42]}  Ke7 {[%clk 0:00:59]} 27. Rc2 {[%clk 0:01:38]}  Kd8 {[%clk 0:00:55]} 28. Kd2 {[%clk 0:01:37]}  Ba4 {[%clk 0:00:54]} 29. Rb2 {[%clk 0:01:31]}  Bc6 {[%clk 0:00:54]} 30. g3 {[%clk 0:01:30]}  Ke7 {[%clk 0:00:49]} 31. Rc2 {[%clk 0:01:27]}  Kd7 {[%clk 0:00:48]} 32. h4 {[%clk 0:01:26]}  Ba4 {[%clk 0:00:43]} 33. Rb2 {[%clk 0:01:26]}  Bc6 {[%clk 0:00:40]} 34. g4 {[%clk 0:01:25]}  Ke7 {[%clk 0:00:37]} 35. g5 {[%clk 0:01:25]}  Kd7 {[%clk 0:00:37]} 36. h5 {[%clk 0:01:22]}  Ke7 {[%clk 0:00:21]} 37. h6 {[%clk 0:01:19]}  d4 {[%clk 0:00:14]} 38. exd4 {[%clk 0:01:07]}  Bd5 {[%clk 0:00:10]} 39. Rc2 {[%clk 0:01:03]}  Kd7 {[%clk 0:00:09]} 40. Bxg6 {[%clk 0:00:56]}  hxg6 {[%clk 0:00:09]} 41. Rc3 {[%clk 0:00:50]}  Rxa2+ {[%clk 0:00:09]} 42. Ke3 {[%clk 0:00:50]}  Rh2 {[%clk 0:00:09]} 43. Kf4 {[%clk 0:00:49]}  Rh4+ {[%clk 0:00:08]} 44. Kg3 {[%clk 0:00:48]}  Rh5 {[%clk 0:00:08]} 45. Kg4 {[%clk 0:00:48]}  Be4 {[%clk 0:00:06]} 46. Rg3 {[%clk 0:00:41]}  Bf5+ {[%clk 0:00:07]} 47. Kf4 {[%clk 0:00:41]}  Kc6 {[%clk 0:00:06]} 48. Rc3+ {[%clk 0:00:38]}  Kd5 {[%clk 0:00:06]} 49. Rc7 {[%clk 0:00:37]}  Kxd4 {[%clk 0:00:06]} 50. Rd7+ {[%clk 0:00:37]}  Kc4 {[%clk 0:00:06]} 51. Rf7 {[%clk 0:00:36]}  Kxb4 {[%clk 0:00:06]} 52. Rxf5 {[%clk 0:00:36]}  exf5 {[%clk 0:00:06]} 53. e6 {[%clk 0:00:36]}  Rh4+ {[%clk 0:00:05]} 54. Ke5 {[%clk 0:00:36]}  Re4+ {[%clk 0:00:04]} 55. Kd5 {[%clk 0:00:35]}  Re1 {[%clk 0:00:01]} 56. h7 {[%clk 0:00:35]}  Rh1 {[%clk 0:00:01]} 57. e7 {[%clk 0:00:34]}  Rxh7 {[%clk 0:00:02]} 58. e8=Q {[%clk 0:00:34]}  Rc7 {[%clk 0:00:02]} 59. Qxg6 {[%clk 0:00:33]}  a5 {[%clk 0:00:02]} 60. Qxb6+ {[%clk 0:00:31]}  Ka4 {[%clk 0:00:03]} 61. Qxc7 {[%clk 0:00:30]}  f4 {[%clk 0:00:03]} 62. Qxf4+ {[%clk 0:00:30]}  Ka3 {[%clk 0:00:04]} 63. g6 {[%clk 0:00:29]}  a4 {[%clk 0:00:05]} 64. Qxa4+ {[%clk 0:00:29]}  Kxa4 {[%clk 0:00:05]} 65. g7 {[%clk 0:00:29]}  Kb3 {[%clk 0:00:06]} 66. g8=Q {[%clk 0:00:30]}  Kc3 {[%clk 0:00:07]} 67. Qg4 {[%clk 0:00:29]}  Kd3 {[%clk 0:00:08]} 68. Qf3+ {[%clk 0:00:29]}  Kd2 {[%clk 0:00:09]} 69. Kd4 {[%clk 0:00:28]}  Kc2 {[%clk 0:00:10]} 70. Qc3+ {[%clk 0:00:28]}  Kd1 {[%clk 0:00:10]} 71. Qb2 {[%clk 0:00:28]}  Ke1 {[%clk 0:00:09]} 72. Ke3 {[%clk 0:00:28]}  Kf1 {[%clk 0:00:10]} 73. Qf2# {[%clk 0:00:27]} 1-0


[Site "https://www.chess.com"]

[Event "Titled Tuesday Blitz March 29 Early 2022"]
[White "Hoffmann, Asa"]
[Black "parintele_chess"]
[WhiteFideId "2001470"]
[WhiteElo "2117"]
[BlackElo "2235"]
[Result "0-1"]
[Round "06"]
[TimeControl "180+1"]
[Date "2022.03.30"]
[WhiteClock "0:00:38"]
[BlackClock "0:00:39"]

1. d4 {[%clk 0:02:53]}  d5 {[%clk 0:02:59]} 2. Bg5 {[%clk 0:02:52]}  Nf6 {[%clk 0:02:58]} 3. Nd2 {[%clk 0:02:52]}  Ne4 {[%clk 0:02:56]} 4. Nxe4 {[%clk 0:02:51]}  dxe4 {[%clk 0:02:57]} 5. e3 {[%clk 0:02:51]}  c5 {[%clk 0:02:56]} 6. c3 {[%clk 0:02:51]}  cxd4 {[%clk 0:02:55]} 7. exd4 {[%clk 0:02:50]}  Qb6 {[%clk 0:02:52]} 8. Qb3 {[%clk 0:02:49]}  Be6 {[%clk 0:02:51]} 9. Qxb6 {[%clk 0:02:47]}  axb6 {[%clk 0:02:52]} 10. a3 {[%clk 0:02:43]}  f6 {[%clk 0:02:51]} 11. Bf4 {[%clk 0:02:42]}  Nc6 {[%clk 0:02:48]} 12. Bc7 {[%clk 0:02:38]}  Na5 {[%clk 0:02:39]} 13. Bxb6 {[%clk 0:02:37]}  Nc4 {[%clk 0:02:38]} 14. Bxc4 {[%clk 0:02:31]}  Bxc4 {[%clk 0:02:39]} 15. Bc5 {[%clk 0:02:31]}  g6 {[%clk 0:02:28]} 16. Ne2 {[%clk 0:02:27]}  b6 {[%clk 0:02:26]} 17. Bb4 {[%clk 0:02:21]}  Bh6 {[%clk 0:02:25]} 18. g3 {[%clk 0:02:10]}  e5 {[%clk 0:02:17]} 19. dxe5 {[%clk 0:02:02]}  fxe5 {[%clk 0:02:18]} 20. Rd1 {[%clk 0:01:59]}  Rd8 {[%clk 0:01:54]} 21. g4 {[%clk 0:01:50]}  Kf7 {[%clk 0:01:40]} 22. Ng3 {[%clk 0:01:47]}  Bd3 {[%clk 0:01:39]} 23. h4 {[%clk 0:01:40]}  Bf4 {[%clk 0:01:36]} 24. Ne2 {[%clk 0:01:38]}  Bc2 {[%clk 0:01:34]} 25. Rxd8 {[%clk 0:01:20]}  Rxd8 {[%clk 0:01:34]} 26. Nxf4 {[%clk 0:01:19]}  Rd1+ {[%clk 0:01:23]} 27. Ke2 {[%clk 0:01:18]}  Rxh1 {[%clk 0:01:23]} 28. Nd5 {[%clk 0:01:15]}  b5 {[%clk 0:01:15]} 29. Ne3 {[%clk 0:01:11]}  Bd3+ {[%clk 0:01:15]} 30. Kd2 {[%clk 0:01:11]}  Rxh4 {[%clk 0:01:15]} 31. b3 {[%clk 0:01:09]}  Rh2 {[%clk 0:01:13]} 32. Nd1 {[%clk 0:01:07]}  h5 {[%clk 0:01:08]} 33. gxh5 {[%clk 0:01:06]}  gxh5 {[%clk 0:01:09]} 34. a4 {[%clk 0:01:06]}  bxa4 {[%clk 0:01:08]} 35. bxa4 {[%clk 0:01:06]}  h4 {[%clk 0:01:08]} 36. Bd6 {[%clk 0:00:48]}  Ke6 {[%clk 0:01:07]} 37. Bc7 {[%clk 0:00:47]}  Rh1 {[%clk 0:01:05]} 38. Ne3 {[%clk 0:00:44]}  h3 {[%clk 0:01:04]} 39. Ng4 {[%clk 0:00:44]}  Rf1 {[%clk 0:00:49]} 40. Bxe5 {[%clk 0:00:41]}  Kf5 {[%clk 0:00:46]} 41. Ne3+ {[%clk 0:00:41]}  Kxe5 {[%clk 0:00:46]} 42. Nxf1 {[%clk 0:00:40]}  Bxf1 {[%clk 0:00:47]} 43. Ke1 {[%clk 0:00:39]}  Bd3 {[%clk 0:00:44]} 44. f4+ {[%clk 0:00:38]}  Kxf4 {[%clk 0:00:43]} 45. Kf2 {[%clk 0:00:38]}  e3+ {[%clk 0:00:40]} 46. Kg1 {[%clk 0:00:38]}  Kg3 {[%clk 0:00:39]} 0-1


[Site "https://www.chess.com"]

[Event "Titled Tuesday Blitz March 29 Early 2022"]
[White "Ilyasli, Ughur"]
[Black "Thomas, Anysia"]
[WhiteFideId "13416197"]
[BlackFideId "670472"]
[WhiteElo "2045"]
[BlackElo "2002"]
[Result "1-0"]
[Round "06"]
[TimeControl "180+1"]
[Date "2022.03.30"]
[WhiteClock "0:00:17"]
[BlackClock "0:00:11"]

1. d4 {[%clk 0:03:00]}  Nf6 {[%clk 0:02:59]} 2. c4 {[%clk 0:03:01]}  g6 {[%clk 0:03:00]} 3. Nc3 {[%clk 0:03:01]}  d5 {[%clk 0:03:00]} 4. cxd5 {[%clk 0:02:59]}  Nxd5 {[%clk 0:03:01]} 5. e4 {[%clk 0:02:59]}  Nxc3 {[%clk 0:03:02]} 6. bxc3 {[%clk 0:02:59]}  Bg7 {[%clk 0:03:03]} 7. Nf3 {[%clk 0:02:52]}  c5 {[%clk 0:03:03]} 8. Rb1 {[%clk 0:02:48]}  O-O {[%clk 0:03:02]} 9. Be2 {[%clk 0:02:46]}  Nc6 {[%clk 0:03:02]} 10. Be3 {[%clk 0:02:38]}  cxd4 {[%clk 0:02:31]} 11. cxd4 {[%clk 0:02:37]}  Qa5+ {[%clk 0:02:32]} 12. Kf1 {[%clk 0:02:34]}  Bg4 {[%clk 0:02:22]} 13. d5 {[%clk 0:02:20]}  Rad8 {[%clk 0:02:12]} 14. Qb3 {[%clk 0:02:02]}  Bxf3 {[%clk 0:02:02]} 15. gxf3 {[%clk 0:01:59]}  Nd4 {[%clk 0:01:55]} 16. Bxd4 {[%clk 0:01:22]}  Bxd4 {[%clk 0:01:56]} 17. Qb4 {[%clk 0:01:18]}  Qxa2 {[%clk 0:01:37]} 18. h4 {[%clk 0:00:56]}  Bc5 {[%clk 0:00:52]} 19. Qb5 {[%clk 0:00:46]}  a6 {[%clk 0:00:47]} 20. Qd3 {[%clk 0:00:39]}  b5 {[%clk 0:00:27]} 21. h5 {[%clk 0:00:38]}  Qa3 {[%clk 0:00:25]} 22. Qd2 {[%clk 0:00:32]}  Ba7 {[%clk 0:00:20]} 23. hxg6 {[%clk 0:00:30]}  fxg6 {[%clk 0:00:19]} 24. Rc1 {[%clk 0:00:21]}  Rf7 {[%clk 0:00:17]} 25. e5 {[%clk 0:00:19]}  e6 {[%clk 0:00:11]} 26. d6 {[%clk 0:00:17]}  Qa5 {[%clk 0:00:11]} 27. Qxa5 {[%clk 0:00:17]} 1-0


[Site "https://www.chess.com"]

[Event "Titled Tuesday Blitz March 29 Early 2022"]
[White "Jarocka, Liwia"]
[Black "Sahil, Tickoo"]
[WhiteFideId "21807558"]
[BlackFideId "5019710"]
[WhiteElo "1896"]
[BlackElo "2099"]
[Result "1-0"]
[Round "06"]
[TimeControl "180+1"]
[Date "2022.03.30"]
[WhiteClock "0:00:52"]
[BlackClock "0:00:03"]

1. c4 {[%clk 0:03:00]}  Na6 {[%clk 0:02:57]} 2. Nf3 {[%clk 0:03:00]}  c5 {[%clk 0:02:57]} 3. g3 {[%clk 0:03:00]}  b6 {[%clk 0:02:56]} 4. Bg2 {[%clk 0:03:00]}  Bb7 {[%clk 0:02:57]} 5. O-O {[%clk 0:03:01]}  Nf6 {[%clk 0:02:57]} 6. Nc3 {[%clk 0:03:01]}  e6 {[%clk 0:02:57]} 7. Re1 {[%clk 0:03:01]}  Ne4 {[%clk 0:02:54]} 8. Nxe4 {[%clk 0:02:51]}  Bxe4 {[%clk 0:02:55]} 9. d3 {[%clk 0:02:50]}  Bb7 {[%clk 0:02:55]} 10. e4 {[%clk 0:02:50]}  Nb4 {[%clk 0:02:50]} 11. Bf4 {[%clk 0:02:44]}  d6 {[%clk 0:02:48]} 12. d4 {[%clk 0:02:41]}  cxd4 {[%clk 0:02:33]} 13. e5 {[%clk 0:02:41]}  dxe5 {[%clk 0:02:10]} 14. Nxe5 {[%clk 0:02:40]}  Bxg2 {[%clk 0:02:09]} 15. Kxg2 {[%clk 0:02:41]}  b5 {[%clk 0:01:28]} 16. a3 {[%clk 0:02:26]}  Na6 {[%clk 0:01:22]} 17. Qf3 {[%clk 0:02:11]}  f6 {[%clk 0:00:29]} 18. Qc6+ {[%clk 0:02:08]}  Ke7 {[%clk 0:00:25]} 19. Qxa6 {[%clk 0:02:02]}  fxe5 {[%clk 0:00:22]} 20. Qb7+ {[%clk 0:02:02]}  Ke8 {[%clk 0:00:18]} 21. Qxb5+ {[%clk 0:02:01]}  Kf7 {[%clk 0:00:17]} 22. Qxe5 {[%clk 0:01:56]}  Qd7 {[%clk 0:00:15]} 23. Rad1 {[%clk 0:01:54]}  Rd8 {[%clk 0:00:11]} 24. Kg1 {[%clk 0:01:53]}  Be7 {[%clk 0:00:08]} 25. Rxd4 {[%clk 0:01:24]}  Qc8 {[%clk 0:00:03]} 26. Rxd8 {[%clk 0:01:22]}  Rxd8 {[%clk 0:00:04]} 27. Qe2 {[%clk 0:01:18]}  Bf6 {[%clk 0:00:04]} 28. Be5 {[%clk 0:01:18]}  Qc6 {[%clk 0:00:03]} 29. Bxf6 {[%clk 0:01:17]}  gxf6 {[%clk 0:00:04]} 30. b4 {[%clk 0:01:17]}  e5 {[%clk 0:00:04]} 31. c5 {[%clk 0:01:17]}  Rd4 {[%clk 0:00:04]} 32. Rd1 {[%clk 0:01:16]}  Qd5 {[%clk 0:00:04]} 33. Rxd4 {[%clk 0:01:14]}  exd4 {[%clk 0:00:05]} 34. Qd3 {[%clk 0:01:13]}  Ke6 {[%clk 0:00:05]} 35. f3 {[%clk 0:01:08]}  h5 {[%clk 0:00:05]} 36. Kf2 {[%clk 0:01:07]}  Ke5 {[%clk 0:00:05]} 37. f4+ {[%clk 0:01:04]}  Ke6 {[%clk 0:00:04]} 38. Qe2+ {[%clk 0:01:03]}  Kd7 {[%clk 0:00:04]} 39. Qb5+ {[%clk 0:01:02]}  Ke6 {[%clk 0:00:03]} 40. Qa6+ {[%clk 0:01:02]}  Kf5 {[%clk 0:00:03]} 41. Qd3+ {[%clk 0:00:56]}  Ke6 {[%clk 0:00:04]} 42. h3 {[%clk 0:00:53]}  Qa2+ {[%clk 0:00:04]} 43. Kf3 {[%clk 0:00:53]}  Kd5 {[%clk 0:00:04]} 44. Qe4+ {[%clk 0:00:52]}  Kc4 {[%clk 0:00:03]} 45. Qe6+ {[%clk 0:00:52]} 1-0


[Site "https://www.chess.com"]

[Event "Titled Tuesday Blitz March 29 Early 2022"]
[White "Jary, Sergey"]
[Black "Odegov, Artem"]
[WhiteFideId "14110350"]
[BlackFideId "34183644"]
[WhiteElo "2260"]
[BlackElo "2286"]
[Result "1-0"]
[Round "06"]
[TimeControl "180+1"]
[Date "2022.03.30"]
[WhiteClock "0:00:44"]
[BlackClock "0:00:03"]

1. e4 {[%clk 0:02:59]}  e6 {[%clk 0:03:00]} 2. d4 {[%clk 0:02:58]}  d5 {[%clk 0:03:00]} 3. Nd2 {[%clk 0:02:59]}  Nf6 {[%clk 0:03:00]} 4. e5 {[%clk 0:02:56]}  Nfd7 {[%clk 0:03:00]} 5. c3 {[%clk 0:02:56]}  c5 {[%clk 0:03:00]} 6. Bd3 {[%clk 0:02:56]}  Nc6 {[%clk 0:03:01]} 7. Ne2 {[%clk 0:02:57]}  cxd4 {[%clk 0:03:00]} 8. cxd4 {[%clk 0:02:57]}  f6 {[%clk 0:03:00]} 9. exf6 {[%clk 0:02:57]}  Nxf6 {[%clk 0:03:01]} 10. O-O {[%clk 0:02:57]}  Bd6 {[%clk 0:03:02]} 11. a3 {[%clk 0:02:30]}  O-O {[%clk 0:02:51]} 12. Nf3 {[%clk 0:02:27]}  e5 {[%clk 0:02:46]} 13. dxe5 {[%clk 0:02:23]}  Nxe5 {[%clk 0:02:47]} 14. Nxe5 {[%clk 0:02:23]}  Bxe5 {[%clk 0:02:48]} 15. Bf4 {[%clk 0:02:17]}  Bxf4 {[%clk 0:02:14]} 16. Nxf4 {[%clk 0:02:16]}  Bg4 {[%clk 0:02:15]} 17. Qd2 {[%clk 0:02:08]}  Qd6 {[%clk 0:02:09]} 18. h3 {[%clk 0:02:09]}  Bd7 {[%clk 0:02:09]} 19. Rfe1 {[%clk 0:02:02]}  Rae8 {[%clk 0:02:07]} 20. b4 {[%clk 0:01:54]}  Kh8 {[%clk 0:01:51]} 21. a4 {[%clk 0:01:46]}  Ne4 {[%clk 0:01:25]} 22. Bxe4 {[%clk 0:01:42]}  Rxf4 {[%clk 0:01:04]} 23. Bxd5 {[%clk 0:01:41]}  Ref8 {[%clk 0:01:03]} 24. f3 {[%clk 0:01:30]}  Bc6 {[%clk 0:00:55]} 25. Red1 {[%clk 0:01:25]}  Rd8 {[%clk 0:00:48]} 26. Qe3 {[%clk 0:01:09]}  Bxd5 {[%clk 0:00:08]} 27. Rxd5 {[%clk 0:01:09]}  Qxd5 {[%clk 0:00:08]} 28. Qxf4 {[%clk 0:01:09]}  h6 {[%clk 0:00:07]} 29. a5 {[%clk 0:01:07]}  a6 {[%clk 0:00:05]} 30. Re1 {[%clk 0:00:58]}  Kh7 {[%clk 0:00:03]} 31. Qe4+ {[%clk 0:00:53]}  Qxe4 {[%clk 0:00:04]} 32. Rxe4 {[%clk 0:00:53]}  Rd7 {[%clk 0:00:04]} 33. Re6 {[%clk 0:00:53]}  Rc7 {[%clk 0:00:02]} 34. Rb6 {[%clk 0:00:53]}  Kg8 {[%clk 0:00:02]} 35. Kf2 {[%clk 0:00:52]}  Kf7 {[%clk 0:00:03]} 36. g4 {[%clk 0:00:53]}  Ke7 {[%clk 0:00:04]} 37. Kg3 {[%clk 0:00:52]}  Kd7 {[%clk 0:00:04]} 38. h4 {[%clk 0:00:50]}  Kc8 {[%clk 0:00:04]} 39. g5 {[%clk 0:00:50]}  hxg5 {[%clk 0:00:05]} 40. hxg5 {[%clk 0:00:50]}  Rc4 {[%clk 0:00:04]} 41. f4 {[%clk 0:00:50]}  Kc7 {[%clk 0:00:02]} 42. Kg4 {[%clk 0:00:50]}  Kc8 {[%clk 0:00:02]} 43. Kf5 {[%clk 0:00:49]}  Rc7 {[%clk 0:00:02]} 44. Kg6 {[%clk 0:00:48]}  Kd8 {[%clk 0:00:03]} 45. f5 {[%clk 0:00:49]}  Ke8 {[%clk 0:00:02]} 46. f6 {[%clk 0:00:47]}  gxf6 {[%clk 0:00:03]} 47. gxf6 {[%clk 0:00:47]}  Kf8 {[%clk 0:00:04]} 48. Rd6 {[%clk 0:00:47]}  Ke8 {[%clk 0:00:03]} 49. Rd2 {[%clk 0:00:44]} 1-0


[Site "https://www.chess.com"]

[Event "Titled Tuesday Blitz March 29 Early 2022"]
[White "Johnson, Ben"]
[Black "Shvedova, Alexandra"]
[WhiteFideId "2010917"]
[BlackFideId "54154782"]
[WhiteElo "2203"]
[BlackElo "1912"]
[Result "0-1"]
[Round "06"]
[TimeControl "180+1"]
[Date "2022.03.30"]
[WhiteClock "0:00:03"]
[BlackClock "0:00:21"]

1. Nf3 {[%clk 0:03:00]}  Nf6 {[%clk 0:02:59]} 2. c4 {[%clk 0:03:00]}  e6 {[%clk 0:02:59]} 3. b3 {[%clk 0:02:59]}  d5 {[%clk 0:02:59]} 4. e3 {[%clk 0:02:57]}  Bd6 {[%clk 0:02:58]} 5. Bb2 {[%clk 0:02:54]}  b6 {[%clk 0:02:57]} 6. cxd5 {[%clk 0:02:52]}  exd5 {[%clk 0:02:57]} 7. Bb5+ {[%clk 0:02:20]}  c6 {[%clk 0:02:56]} 8. Be2 {[%clk 0:02:21]}  O-O {[%clk 0:02:55]} 9. O-O {[%clk 0:02:21]}  Bb7 {[%clk 0:02:48]} 10. Nc3 {[%clk 0:02:16]}  Nbd7 {[%clk 0:02:49]} 11. Qc2 {[%clk 0:02:09]}  a6 {[%clk 0:02:46]} 12. Qf5 {[%clk 0:02:02]}  Qe7 {[%clk 0:02:43]} 13. Rac1 {[%clk 0:01:57]}  b5 {[%clk 0:02:26]} 14. Bd3 {[%clk 0:01:40]}  Nc5 {[%clk 0:02:18]} 15. Bb1 {[%clk 0:01:36]}  Nce4 {[%clk 0:02:08]} 16. Nxe4 {[%clk 0:01:30]}  Nxe4 {[%clk 0:02:06]} 17. d3 {[%clk 0:01:01]}  Nf6 {[%clk 0:01:42]} 18. e4 {[%clk 0:01:01]}  dxe4 {[%clk 0:01:30]} 19. dxe4 {[%clk 0:01:02]}  Bc8 {[%clk 0:01:20]} 20. Qg5 {[%clk 0:00:51]}  h6 {[%clk 0:01:14]} 21. Bxf6 {[%clk 0:00:50]}  hxg5 {[%clk 0:01:08]} 22. Bxe7 {[%clk 0:00:49]}  Bxe7 {[%clk 0:01:09]} 23. Rxc6 {[%clk 0:00:48]}  g4 {[%clk 0:00:58]} 24. Nd4 {[%clk 0:00:41]}  Bf6 {[%clk 0:00:58]} 25. Nf5 {[%clk 0:00:34]}  Bxf5 {[%clk 0:00:52]} 26. exf5 {[%clk 0:00:35]}  Rfd8 {[%clk 0:00:51]} 27. Rc2 {[%clk 0:00:30]}  Rd5 {[%clk 0:00:49]} 28. Re2 {[%clk 0:00:27]}  Rad8 {[%clk 0:00:46]} 29. g3 {[%clk 0:00:27]}  Rd2 {[%clk 0:00:45]} 30. Rfe1 {[%clk 0:00:25]}  Rxe2 {[%clk 0:00:44]} 31. Rxe2 {[%clk 0:00:25]}  Rd1+ {[%clk 0:00:44]} 32. Kg2 {[%clk 0:00:26]}  Rxb1 {[%clk 0:00:44]} 33. Re4 {[%clk 0:00:24]}  Rb2 {[%clk 0:00:44]} 34. Rxg4 {[%clk 0:00:20]}  Rxa2 {[%clk 0:00:44]} 35. Re4 {[%clk 0:00:17]}  Rb2 {[%clk 0:00:43]} 36. Re3 {[%clk 0:00:17]}  a5 {[%clk 0:00:42]} 37. g4 {[%clk 0:00:13]}  Bd4 {[%clk 0:00:41]} 38. Rf3 {[%clk 0:00:11]}  a4 {[%clk 0:00:41]} 39. bxa4 {[%clk 0:00:11]}  bxa4 {[%clk 0:00:42]} 40. Kg3 {[%clk 0:00:12]}  Bc5 {[%clk 0:00:36]} 41. Rc3 {[%clk 0:00:10]}  Bxf2+ {[%clk 0:00:37]} 42. Kf3 {[%clk 0:00:10]}  Bd4 {[%clk 0:00:36]} 43. Rc4 {[%clk 0:00:10]}  Bf6 {[%clk 0:00:32]} 44. Rxa4 {[%clk 0:00:10]}  Rxh2 {[%clk 0:00:32]} 45. Kf4 {[%clk 0:00:08]}  Rf2+ {[%clk 0:00:30]} 46. Kg3 {[%clk 0:00:08]}  Rb2 {[%clk 0:00:30]} 47. Kf4 {[%clk 0:00:07]}  Rf2+ {[%clk 0:00:26]} 48. Kg3 {[%clk 0:00:06]}  Rd2 {[%clk 0:00:27]} 49. Ra8+ {[%clk 0:00:03]}  Kh7 {[%clk 0:00:26]} 50. Kf4 {[%clk 0:00:03]}  Rd4+ {[%clk 0:00:26]} 51. Kf3 {[%clk 0:00:03]}  Kh6 {[%clk 0:00:25]} 52. Ra2 {[%clk 0:00:03]}  Kg5 {[%clk 0:00:22]} 53. Rg2 {[%clk 0:00:03]}  Rf4+ {[%clk 0:00:21]} 0-1


[Site "https://www.chess.com"]

[Event "Titled Tuesday Blitz March 29 Early 2022"]
[White "Kaminski, Victor"]
[Black "Mikhalsky, Vladimir"]
[WhiteFideId "1131630"]
[BlackFideId "14144352"]
[WhiteElo "2181"]
[BlackElo "2301"]
[Result "0-1"]
[Round "06"]
[TimeControl "180+1"]
[Date "2022.03.30"]
[WhiteClock "0:00:36"]
[BlackClock "0:01:03"]

1. e4 {[%clk 0:03:00]}  g6 {[%clk 0:02:54]} 2. d4 {[%clk 0:02:57]}  Bg7 {[%clk 0:02:54]} 3. Nc3 {[%clk 0:02:57]}  d6 {[%clk 0:02:54]} 4. Be3 {[%clk 0:02:57]}  Nd7 {[%clk 0:02:51]} 5. Qd2 {[%clk 0:02:53]}  a6 {[%clk 0:02:51]} 6. f3 {[%clk 0:02:47]}  b5 {[%clk 0:02:51]} 7. Nge2 {[%clk 0:02:40]}  Nb6 {[%clk 0:02:50]} 8. Ng3 {[%clk 0:02:38]}  h5 {[%clk 0:02:46]} 9. h4 {[%clk 0:02:37]}  Nf6 {[%clk 0:02:45]} 10. b3 {[%clk 0:02:32]}  b4 {[%clk 0:02:42]} 11. Nce2 {[%clk 0:02:30]}  a5 {[%clk 0:02:42]} 12. a3 {[%clk 0:02:26]}  Ba6 {[%clk 0:02:31]} 13. axb4 {[%clk 0:02:18]}  axb4 {[%clk 0:02:30]} 14. Kf2 {[%clk 0:02:17]}  O-O {[%clk 0:01:45]} 15. Qxb4 {[%clk 0:02:03]}  Nfd7 {[%clk 0:01:40]} 16. Qd2 {[%clk 0:01:54]}  c5 {[%clk 0:01:40]} 17. Nf4 {[%clk 0:01:29]}  cxd4 {[%clk 0:01:38]} 18. Rxa6 {[%clk 0:01:22]}  dxe3+ {[%clk 0:01:32]} 19. Qxe3 {[%clk 0:01:22]}  Qc8 {[%clk 0:01:26]} 20. Rxb6 {[%clk 0:01:13]}  Qxc2+ {[%clk 0:01:23]} 21. Be2 {[%clk 0:01:12]}  Nxb6 {[%clk 0:01:12]} 22. Qxb6 {[%clk 0:01:13]}  Rfb8 {[%clk 0:01:09]} 23. Qxb8+ {[%clk 0:00:35]}  Rxb8 {[%clk 0:01:09]} 24. Rd1 {[%clk 0:00:36]}  Rxb3 {[%clk 0:01:03]} 0-1


[Site "https://www.chess.com"]

[Event "Titled Tuesday Blitz March 29 Early 2022"]
[White "Kejzar, Petra"]
[Black "Omelja, Artem"]
[WhiteFideId "14610213"]
[BlackFideId "14119846"]
[WhiteElo "2003"]
[BlackElo "2382"]
[Result "0-1"]
[Round "06"]
[TimeControl "180+1"]
[Date "2022.03.30"]
[WhiteClock "0:00:39"]
[BlackClock "0:00:51"]

1. e4 {[%clk 0:03:00]}  c5 {[%clk 0:02:59]} 2. Nf3 {[%clk 0:02:59]}  e6 {[%clk 0:03:00]} 3. d4 {[%clk 0:02:58]}  cxd4 {[%clk 0:03:00]} 4. Nxd4 {[%clk 0:02:58]}  Nf6 {[%clk 0:03:01]} 5. Nc3 {[%clk 0:02:55]}  Nc6 {[%clk 0:02:56]} 6. Be2 {[%clk 0:02:53]}  Bb4 {[%clk 0:02:54]} 7. O-O {[%clk 0:02:50]}  Bxc3 {[%clk 0:02:54]} 8. bxc3 {[%clk 0:02:49]}  Nxe4 {[%clk 0:02:53]} 9. Ba3 {[%clk 0:02:49]}  Nxc3 {[%clk 0:02:46]} 10. Qd2 {[%clk 0:02:36]}  Nxd4 {[%clk 0:02:41]} 11. Bc4 {[%clk 0:02:12]}  Qa5 {[%clk 0:01:41]} 12. Qxd4 {[%clk 0:02:00]}  Qxa3 {[%clk 0:01:40]} 13. Qxg7 {[%clk 0:01:59]}  Rf8 {[%clk 0:01:41]} 14. Qxh7 {[%clk 0:01:43]}  d5 {[%clk 0:01:39]} 15. Bd3 {[%clk 0:01:40]}  Bd7 {[%clk 0:01:23]} 16. f4 {[%clk 0:01:38]}  O-O-O {[%clk 0:01:19]} 17. f5 {[%clk 0:01:37]}  e5 {[%clk 0:01:15]} 18. Rfe1 {[%clk 0:01:18]}  e4 {[%clk 0:01:03]} 19. Bf1 {[%clk 0:01:15]}  Qc5+ {[%clk 0:01:03]} 20. Kh1 {[%clk 0:01:13]}  Qd6 {[%clk 0:01:04]} 21. Qh3 {[%clk 0:01:07]}  d4 {[%clk 0:00:55]} 22. g3 {[%clk 0:00:56]}  Rh8 {[%clk 0:00:53]} 23. Qg2 {[%clk 0:00:47]}  Bc6 {[%clk 0:00:52]} 24. Kg1 {[%clk 0:00:39]}  e3 {[%clk 0:00:51]} 0-1


[Site "https://www.chess.com"]